Workbook

Sheet Narrative
B2: Cost Containment Initiative In a July 1, 2024 letter to the Louisiana Housing Corporation (LHC), Governor Jeff Landry asked for an increased emphasis on a robust cost containment policy in the proposed 2025 Qualified Allocation Plan (QAP).
B3: The 2025-2026 Qualified Allocation Plan (QAP) requires a cost containment analysis to be submitted with each application for low-income housing credits (LIHTC Application). LHC’s Cost Containment Template reviews and compares (i) the hard costs (Hard Costs) of constructing and/or rehabilitating a project to the HUD limits for the project type and project location referenced in the LIHTC Application and (ii) total development costs (TDC Costs) of a project to the HUD limits for the project type and location referenced in the LIHTC Application. The cost containment analysis will utilize as a baseline (i) the HUD 2024 Unit HCC Limits as the construction/rehabilitation cost base (HUD’s Hard Cost Baseline) for evaluating construction costs that are specific to each geographical location throughout the State of Louisiana and (ii) the HUD 2024 Total Development Cost Limits (HUD’s TDC Baseline) for evaluating total development costs limits that are specific to geographical regions of the State of Louisiana.
B4: HUD’s Database establishes Hard Cost Limits and Total Development Cost Limits on the basis of Unit Bedroom Size (i.e., Efficiency, 1-BR, 2-BR, 3-BR, 4-BR, 5-Br, and 6-BR) and Development Type (i.e., Detached/Semi-Detached, Row House, Walkup, and Elevator) for seven regions across the State of Louisiana (Alexandria, Baton Rouge, Lafayette, Lake Charles, Monroe, New Orleans, and Shreveport. HUD’s Database takes into account climatic conditions which are assessed as standard, severe, and hostile. These conditions take into consideration insulation requirements, seismic zones, average wind speeds, radon producing areas, average annual snowfall, annual average number of days with hail, annual average total heating degree days, annual average total cooling degree days, and annual average frost penetration. HUD’s Database for Louisiana regions features the base structure for that climate with specific features subtracted and additional features added.
B5: Hard Cost Containment Worksheet: The Hard Cost Containment Worksheet is comparable to HUD’ Estimate and Certificate of Cost that is certified by the developer. LHC is requiring the Hard Cost Containment Worksheet to be completed by the developer’s Architect.
B6: • ARCHITECT ESTIMATED COST COLUMN: This worksheet should be completed by the project’s architect to provide the costs of the Trade Items corresponding to the Hard Costs submitted in LHC’s Low-income Housing Tax Credit (LIHTC) Application.
B7: • Incremental Cost from Threshold Mandate Column: The 2025-2026 QAP contains mandates and policy thresholds that increase hard costs above what may otherwise be required for standard moderately designed affordable housing. Absent policy mandates and policy thresholds, the Hard Costs submitted in LHC’s LIHTC Application may have been lower. The Architect must use this column to estimate the portion of Hard Costs attributable to threshold and policy mandates required by funding sources such as (i) LIHTCs under the applicable QAP (including selection criteria scoring incentives selected by the developer), (ii) PRIME Programs (including selection criteria scoring incentives selected by the developer), and (iii) other funding sources evidenced in the project’s development budget sources of funds. For example, if a funding source mandates a fortified roof that involves a cost above a standard roof cost, the Developer may state that the funding source mandates a cost for the fortified roof and thereafter input the additional cost above the standard roof cost in the column labeled “Incremental Cost From Threshold Mandate.” Similarly, historic rehab projects may require compliance with rehabilitation standards by the State Historic Preservation Office (SHPO) that involves costs exceeding the renovation of a non-historic building. Such additional costs above standard renovation costs may be evidenced as an Incremental Cost from Threshold Mandate in the Hard Cost Containment Worksheet.
B8: LHC now requires each developer to use LHC’s Cost Containment Template to determine if the Hard Costs and TDC Costs for the project exceed either the HUD Hard Cost Baseline and/or the HUD TDC baseline.
B9: LHC’s Template automatically computes from the LIHTC Application the unique Hard Cost Baseline and Total Cost Baseline applicable to a project on the basis of the project’s Unit Bedroom Size mix, by its location within one of the seven areas of the State, and on the basis of Development Type.
B10: ADJUSTED TDC COST CONTAINMENT. This worksheet is to be used to input specified costs associated with Complex Layered Financing.
B11: SUMMARY: This spreadsheet computes Soft Costs as a percentage of Total Development Costs and also summarizes the results from the threshold and mandate adjustments from the Hard Cost Containment worksheet and from the Adjusted TDC Cost Containment worksheet with respect to complex layered financing. Note that the 2025/2026 QAP limits Soft Costs to not more than 30% of Total Development Costs; therefore, any review of the LIHTC Application that evidences Soft Costs exceeding 30% of Total Development Costs will be rejected.

Sheet Instructions
B2: 1 | C2: Open the cost containment template, enable macros and save file locally
B3: 2 | C3: Open LIHTC application to pull data from, enable macros and save file locally
B4: 3 | C4: Ensure the cost reduction template year matches the year of the LIHTC application
C5: (See below, and row 1 of the analysis tab, it should be the same year for both)
B6: 4 | C6: From the instructions tab, go to the top ribbon, go to data and then edit links
B7: 5 | C7: Click change source and then link to the LIHTC application to pull data
B8: 6 | C8: Go to HCC Cost Containment tab and complete any/all green fill cells
B9: 7 | C9: Incremental costs should include, but are not limited to the following: Material costs that have significantly increased since the last publication of TDCs, Site acquisition costs that are unusual, Transportation costs of materials that have increased since the last publication of TDCs, Natural disasters occurring after the last TDC publication date that have caused an increase in material, shipping, labor, and other construction costs, Special local conditions exist that result in higher construction costs as verified by historical cost data for building affordable housing in their community, Significant additional costs for incorporating green building, energy efficiency or other innovative practices, and other reasons to be detailed.
B10: 8 | C10: Go to Adjusted TDC Cost Containment tab and complete any/all green fill cells
B11: 9 | C11: Save cost containment template when complete
C14: Cost containment template year: | G14: =+'Adjusted TDC Cost Containment'!D1 -> For 2025 Application
C15: LIHTC Application: | G15: =+'Adjusted TDC Cost Containment'!K1 -> 2025 QAP Underwriting Application v1.1

Sheet LHC APP DATA (hidden)
B3: =+'[1]Development Costs'!B231 -> HUD TDC Per Unit Limit
B5: =+'[1]Development Costs'!B233 -> Parish | C5: =+'[1]Development Costs'!C233 -> Select
B6: =+'[1]Development Costs'!B234 -> Louisiana Cost Area for TDC Limit Purposes | C6: =+'[1]Development Costs'!C234 -> 
B7: =+'[1]Development Costs'!B235 -> Primary Building Type | C7: =+'[1]Development Costs'!C235 -> Missing | F7: =+'[1]Development Costs'!F235 -> Maximum
B8: =+'[1]Development Costs'!B236 -> Building Type for TDC Limit Purposes | C8: =+'[1]Development Costs'!C236 -> Walkup | E8: =+'[1]Development Costs'!E236 -> TDC / Unit | F8: =+'[1]Development Costs'!F236 -> TDC
A10: 2 | B10: =+'[1]Development Costs'!B238 -> 0 BR Units | C10: =+'[1]Development Costs'!C238 -> 0 | E10: =VLOOKUP($K$10,'HUD data TDC'!$C$8:$J$35,A10,FALSE) ->  | F10: =+E10*C10 ->  | K10: =TRIM(C6&" "&C8) -> 
A11: 3 | B11: =+'[1]Development Costs'!B239 -> 1 BR Units | C11: =+'[1]Development Costs'!C239 -> 0 | E11: =VLOOKUP($K$10,'HUD data TDC'!$C$8:$J$35,A11,FALSE) ->  | F11: =+E11*C11 -> 
A12: 4 | B12: =+'[1]Development Costs'!B240 -> 2 BR Units | C12: =+'[1]Development Costs'!C240 -> 0 | E12: =VLOOKUP($K$10,'HUD data TDC'!$C$8:$J$35,A12,FALSE) ->  | F12: =+E12*C12 -> 
A13: 5 | B13: =+'[1]Development Costs'!B241 -> 3 BR Units | C13: =+'[1]Development Costs'!C241 -> 0 | E13: =VLOOKUP($K$10,'HUD data TDC'!$C$8:$J$35,A13,FALSE) ->  | F13: =+E13*C13 -> 
A14: 6 | B14: =+'[1]Development Costs'!B242 -> 4 BR Units | C14: =+'[1]Development Costs'!C242 -> 0 | E14: =VLOOKUP($K$10,'HUD data TDC'!$C$8:$J$35,A14,FALSE) ->  | F14: =+E14*C14 -> 
B16: =+'[1]Development Costs'!B244 -> Total | C16: =+'[1]Development Costs'!C244 -> 0 | F16: =SUM(F9:F15) ->  | G16: =+'[1]Development Costs'!G244 -> = Maximum TDC Limit
E19: =IF(C8="Elevator", 1.6,1.75) -> 1.75
C21: HCC Derived | E21: =+F16/E19 -> 
B24: App adj TDC | C24: =+'[1]Development Costs'!$F$254 -> 0
B25: tsqft
B26: =+'Adjusted TDC Cost Containment'!F6 -> 0
B28: Hud tsft | G28: =+C10 -> 0 | H28: 500 | J28: =+G28*H28 -> 0
B29: =SUM(J28:J32) -> 0 | G29: =+C11 -> 0 | H29: 700 | J29: =+G29*H29 -> 0
G30: =+C12 -> 0 | H30: 900 | J30: =+G30*H30 -> 0
G31: =+C13 -> 0 | H31: 1200 | J31: =+G31*H31 -> 0
G32: =+C14 -> 0 | H32: 1500 | J32: =+G32*H32 -> 0

Sheet Summary
B2: Summary
B4: Asset | F4: =+'Adjusted TDC Cost Containment'!F3 -> 0
B5: Parish | F5: =+'Adjusted TDC Cost Containment'!F4 -> Select
B6: Number of Units | F6: =+'Adjusted TDC Cost Containment'!F5 -> 0 | H6: Square footage | J6: =+'Adjusted TDC Cost Containment'!F6 -> 0
B8: Soft Costs as a percentage of TDC: | H8: =IF(H36=0,"",(H36-H14)/H36) ->  | J8: =IF(H8>0.3,"!!!!!!!","") -> !!!!!!!
B10: Hard Cost Containment
B12: HUD HCC LIMIT | H12: =+'Hard Cost Containment'!D2 -> 
B14: Architect Estimate Total Costs | H14: =+'Hard Cost Containment'!C62 -> 0
B15: Incremental Costs From Threshold Mandates | H15: =+'Hard Cost Containment'!D62 -> 0
B16: Net Cost without Threshold Mandates | H16: =+'Hard Cost Containment'!E62 -> 0
B18: Amount over Limit | H18: =MAX(0,+H16-H12) -> 
B21: IMPUTED HUD HCC / SQFT LIMIT | H21: =+'Hard Cost Containment'!N2 -> 
B23: Architect Estimate Total Costs / SQFT | H23: =IF($J$6=0,"",+'Hard Cost Containment'!$C$62/$J$6) -> 
B24: Incremental Costs From Threshold Mandates / SQFT | H24: =IF($J$6=0,"",+'Hard Cost Containment'!$D$62/$J$6) -> 
B25: Net Cost without Threshold Mandates / SQFT | H25: =IF($J$6=0,"",+'Hard Cost Containment'!$E$62/$J$6) -> 
B27: Amount over Limit | H27: =IF(H21="","",MAX(0,+H25-H21)) -> 
B30: TDC Cost Containment
B32: =+'Adjusted TDC Cost Containment'!B14 -> Appraisal Date : | D32: =IF('Adjusted TDC Cost Containment'!E14="","",'Adjusted TDC Cost Containment'!E14) ->  | H32: =+'Adjusted TDC Cost Containment'!F14 -> Appraisal Amount : | J32: =+'Adjusted TDC Cost Containment'!I14 -> 0
B33: HUD TDC LIMIT | H33: =+'Adjusted TDC Cost Containment'!F9 -> 
B35: Application Adjusted TDC | H35: =+'Adjusted TDC Cost Containment'!K22 -> 0
B36: Post Application Adjusted TDC | H36: =+'Adjusted TDC Cost Containment'!F10 -> 0
B38: Amount over Limit | H38: =MAX(0,H36-H33) -> 
B41: HUD TDC/SQFT LIMIT | H41: =+'Adjusted TDC Cost Containment'!O9 -> 
B43: Application Adjusted TDC / SQFT | H43: =IF(J6=0,"",'LHC APP DATA'!C24/Summary!J6) -> 
B44: Post Application Adjusted TDC / SQFT | H44: =+'Adjusted TDC Cost Containment'!O10 -> 
B46: Amount over Limit | H46: =IF(H41="","",MAX(0,H44-H41)) -> 

Sheet Hard Cost Containment
B2: HUD HCC LIMIT | D2: ='LHC APP DATA'!E21 ->  | J2: HUD HCC/SQFT Limit | N2: =IF('LHC APP DATA'!B29=0,"",D2/'LHC APP DATA'!B29) -> 
B3: Total Hard Cost Contractor W/O Thresholds | D3: =E62 -> 0 | J3: Total HCC W/O Thresholds/SQFT | N3: =IF('Adjusted TDC Cost Containment'!F6=0,"",E62/'Adjusted TDC Cost Containment'!F6) -> 
B4: Delta | D4: =INT(D3-D2) ->  | F4: =IF(D4=0,"","!!!!!!!!!!") ->  | J4: Delta | N4: =INT(N3-N2) -> 0
E5: =IF(D4>0,"!!!!!!!!!!","") ->  | O5: =IF(N4>0,"!!!!!!!!!!","") -> 
A6: Based on form :HUD-92331-B
C7: Architect | D7: Incremental Cost From | E7: Net Cost Without
B8: TRADE ITEM | C8: Estimated Cost | D8: Threshold Mandate | E8: Threshold Mandate | F8: TOTAL | G8: VARIANCE | H8: % | J8: Developer Comments
A10: 1 | B10: Concrete | E10: =C10-D10 -> 0 | F10: =D10+E10 -> 0 | G10: =IF(C10="0",0,+C10-F10) -> 0 | H10: =IF(C10="0",0,+G10/C10) -> 0
A11: =A10+1 -> 2 | B11: Masonry | E11: =C11-D11 -> 0 | F11: 0 | G11: =IF(C11="0",0,+C11-F11) -> 0 | H11: =IF(C11="0",0,+G11/C11) -> 0
A12: =A11+1 -> 3 | B12: Metals | E12: 0 | F12: 0 | G12: 0 | H12: 0
A13: 4 | B13: Rough Carpentry | E13: 0 | F13: 0 | G13: 0 | H13: 0
A14: 5 | B14: Finish Carpentry | E14: 0 | F14: 0 | G14: 0 | H14: 0
A15: 6 | B15: Waterproofing | E15: 0 | F15: 0 | G15: 0 | H15: 0
A16: 7 | B16: Insulation | E16: 0 | F16: 0 | G16: 0 | H16: 0
A17: 8 | B17: Roofing | E17: 0 | F17: 0 | G17: 0 | H17: 0
A18: 9 | B18: Sheet Metal | E18: 0 | F18: 0 | G18: 0 | H18: 0
A19: 10 | B19: Doors | E19: 0 | F19: 0 | G19: 0 | H19: 0
A20: 11 | B20: Windows | E20: 0 | F20: 0 | G20: 0 | H20: 0
A21: 12 | B21: Glass | E21: 0 | F21: 0 | G21: 0 | H21: 0
A22: 13 | B22: Lath and Plaster | E22: 0 | F22: 0 | G22: 0 | H22: 0
A23: 14 | B23: Drywall | E23: 0 | F23: 0 | G23: 0 | H23: 0
A24: 15 | B24: Tile Work | E24: 0 | F24: 0 | G24: 0 | H24: 0
A25: 16 | B25: Acoustical | E25: 0 | F25: 0 | G25: 0 | H25: 0
A26: 17 | B26: Wood Flooring | E26: 0 | F26: 0 | G26: 0 | H26: 0
A27: 18 | B27: Resilient Flooring | E27: 0 | F27: 0 | G27: 0 | H27: 0
A28: 19 | B28: Painting and Decorating | E28: 0 | F28: 0 | G28: 0 | H28: 0
A29: 20 | B29: Specialties | E29: 0 | F29: 0 | G29: 0 | H29: 0
A30: 21 | B30: Special Equipment | E30: 0 | F30: 0 | G30: 0 | H30: 0
A31: 22 | B31: Cabinets | E31: 0 | F31: 0 | G31: 0 | H31: 0
A32: 23 | B32: Appliances | E32: 0 | F32: 0 | G32: 0 | H32: 0
A33: 24 | B33: Blinds and Shades | E33: 0 | F33: 0 | G33: 0 | H33: 0
A34: 25 | B34: Carpets | E34: 0 | F34: 0 | G34: 0 | H34: 0
A35: 26 | B35: Special Construction | E35: 0 | F35: 0 | G35: 0 | H35: 0
A36: 27 | B36: Elevators | E36: 0 | F36: 0 | G36: 0 | H36: 0
A37: 28 | B37: Plumbing and Hot Water | E37: 0 | F37: 0 | G37: 0 | H37: 0
A38: 29 | B38: Heat and Ventilation | E38: 0 | F38: 0 | G38: 0 | H38: 0
A39: 30 | B39: Air Conditioning | E39: 0 | F39: 0 | G39: 0 | H39: 0
A40: 31 | B40: Electrical | E40: 0 | F40: 0 | G40: 0 | H40: 0
A41: 32 | B41: SUBTOTAL (Structures) | C41: =SUM(C9:C40) -> 0 | D41: =SUM(D9:D40) -> 0 | E41: =SUM(E9:E40) -> 0 | F41: 0 | G41: 0 | H41: 0
A43: =A41+1 -> 33 | B43: Accessory Structures | E43: =C43-D43 -> 0 | F43: 0 | G43: 0 | H43: 0
A44: 34 | B44: TOTAL (Structures) | C44: =C41+C43 -> 0 | D44: =D41+D43 -> 0 | E44: =E41+E43 -> 0 | F44: 0 | G44: 0 | H44: 0
A46: =A44+1 -> 35 | B46: Earthwork | E46: =C46-D46 -> 0 | F46: 0 | G46: 0 | H46: 0
A47: 36 | B47: Site Utilities | E47: 0 | F47: 0 | G47: 0 | H47: 0
A48: 37 | B48: Roads and Walks | E48: 0 | F48: 0 | G48: 0 | H48: 0
A49: 38 | B49: Site Improvement | E49: 0 | F49: 0 | G49: 0 | H49: 0
A50: 39 | B50: Lawns and Planting | E50: 0 | F50: 0 | G50: 0 | H50: 0
A51: 40 | B51: Unusual Site Conditions | E51: 0 | F51: 0 | G51: 0 | H51: 0
A52: 41 | B52: TOTAL (Land Improvements) | C52: =SUM(C46:C51) -> 0 | D52: =SUM(D46:D51) -> 0 | E52: 0 | F52: 0 | G52: 0 | H52: 0
A54: =A52+1 -> 42 | B54: General Requirements | E54: 0 | F54: 0 | G54: 0 | H54: 0
A55: 43 | B55: Builder's Overhead | E55: 0 | F55: 0 | G55: 0 | H55: 0
A56: 44 | B56: Builder's Profit | E56: 0 | F56: 0 | G56: 0 | H56: 0
A57: 45 | B57: Architects Fee | E57: 0 | F57: 0 | G57: 0 | H57: 0
A58: 46 | B58: Architects Fee | E58: 0 | F58: 0 | G58: 0 | H58: 0
A59: 47 | B59: Other Fee | E59: 0 | F59: 0 | G59: 0 | H59: 0
A60: 48 | B60: Bond Premium (Contractor) | E60: 0 | F60: 0 | G60: 0 | H60: 0
A61: 49 | B61: Misc. (Labor and Materials) | E61: 0 | F61: 0 | G61: 0 | H61: 0
A62: 50 | B62: TOTAL HARD COST | C62: =C44+C52+(SUM(C54:C61)) -> 0 | D62: =D44+D52+(SUM(D54:D61)) -> 0 | E62: =E44+E52+(SUM(E54:E61)) -> 0 | F62: 0 | G62: 0 | H62: 0

Sheet Adjusted TDC Cost Containment
A1: V | B1: 5.4 | D1: For 2025 Application | I1: Application: | K1: =+'[1]Project Description'!$A$3 -> 2025 QAP Underwriting Application v1.1
B3: Asset | F3: =+'[1]Project Description'!$E$84 -> 0
B4: Parish | F4: =+'LHC APP DATA'!C5 -> Select | I4: Development Type | K4: =+'[1]Project Description'!$H$95 -> Missing
B5: Number of Units | F5: =+'LHC APP DATA'!C16 -> 0 | I5: Max Developer Fee | K5: =+'[1]Development Costs'!$C$326 -> 0
B6: Total Square footage | F6: =+'[1]Unit Mix and Rents'!$E$41 -> 0 | I6: Developer Fee | K6: =+'[1]Development Costs'!$C$226+'[1]Development Costs'!$C$227 -> 0 | O6: =IF(K6>K5,"!!!!!!!!!!","") -> 
I8: Delta
B9: Maximum TDC Limit | F9: =+'LHC APP DATA'!F16 ->  | I9: =IF(F10>F9,"!!!!!!!!!!","") ->  | K9: HUD TDC/sqft Limit | O9: =IF('LHC APP DATA'!B29=0,"",+F9/'LHC APP DATA'!B29) ->  | P9: =IF(O10>O9,"!!!!!!!!!!","") ->  | T9: =IF(S9>R9,"!!!!!!!!!!","") -> 
B10: Post App. Adjusted TDC | F10: =+K62 -> 0 | I10: =+F10-F$9 ->  | K10: Adjusted TDC/sqft | O10: =IF(F6=0,"",+F10/F6) -> 
Q12: Developer Comments
B14: Appraisal Date : | F14: Appraisal Amount :
B16: TDC From Application | K16: =+'[1]Development Costs'!$D$140 -> 0
C18: Less Community Facilities Costs | K18: =+'[1]Development Costs'!$F249 -> 0
C19: Less Community Service Facility Costs | K19: =+'[1]Development Costs'!$F250 -> 0
C20: Less Reserves | K20: =+'[1]Development Costs'!$F252 -> 0
B22: Adjusted TDC | K22: =SUM(K16:K20) -> 0
C24: Less Construction Costs Due to threshold Mandates | K24: =-'Hard Cost Containment'!D62 -> 0 | Q24: From Hard Cost Containment Tab
B26: Subtotal | K26: =+K22+K24 -> 0
B28: Less Costs Associated with Complex Layered Financing | K28: Enter below as negative numbers
B30: I. Application and Allocation Fees for Bonds and Tax Credits
C31: a. Tax Credit Application Fees | O31: =IF(K31>0,"!!!!!","") -> 
C32: b. Tax Credit Allocation Fees | O32: =IF(K32>0,"!!!!!","") -> 
C33: c. Bond Application Fees to Issuer
C34: d. Bond Application Fees to State Bond Commission
C35: e. Subordinate Loan Application Fees
B37: II. Bond Issuance Costs
C38: a. Bond Counsel | O38: =IF(K38>0,"!!!!!","") -> 
C39: b. Bond Issuer Counsel
C40: c. Bond Issuer Financing Fee
C41: d. State Bond Commission Fee
C42: e. Trustee Fee
C43: f. Trustee Counsel Fee
B45: III. Subordinate Loan Costs
C46: a. Subordinate Lenders Financing Fee | O46: =IF(K46>0,"!!!!!","") -> 
C47: b. Subordinate Lender Counsel Fee
C48: c. Subordinate Loan Document Recording Costs
B50: IV. Tax Credit Equity Costs
C51: a. Syndication Fee | O51: =IF(K51>0,"!!!!!","") -> 
C52: b. Equity Counsel Fee
C53: c. CPA Certification of 50% Test
C54: d. Bridge Loan Costs
B56: V. Developer Fee Associated with Complex Layered Financing
B58: VI. Other (Subject to LHC Approval)
B60: Total Costs Associated with Complex Layered Financing | K60: =SUM(K30:K59) -> 0 | O60: =IF(K60>0,"!!!!!","") -> 
B62: Post Application Adjusted TDC | K62: =+K26+K60 -> 0

Sheet HUD data TDC
A5: HUD 2024 Unit Total Development Cost Limits Database
A7: Area | B7: Development Type | C7: Index | D7: 0 BR TDC | E7: 1 BR TDC | F7: 2 BR TDC | G7: 3 BR TDC | H7: 4 BR TDC | I7: 5 BR TDC | J7: 6 BR TDC
A8: Alexandria | B8: Detached / Semi-Detached | C8: =A8&" "&B8 -> Alexandria Detached / Semi-Detached | D8: 189946 | E8: 246451 | F8: 295485 | G8: 353332 | H8: 416823 | I8: 457190 | J8: 493765
A9: Alexandria | B9: Row House | C9: Alexandria Row House | D9: 164154 | E9: 215653 | F9: 262716 | G9: 323299 | H9: 385122 | I9: 425561 | J9: 462707
A10: Alexandria | B10: Walkup | C10: Alexandria Walkup | D10: 148235 | E10: 201398 | F10: 254416 | G10: 334680 | H10: 414094 | I10: 466090 | J10: 517300
A11: Alexandria | B11: Elevator | C11: Alexandria Elevator | D11: 153222 | E11: 214511 | F11: 275800 | G11: 367734 | H11: 459667 | I11: 520956 | J11: 582245
A12: Baton Rouge | B12: Detached / Semi-Detached | C12: Baton Rouge Detached / Semi-Detached | D12: 192990 | E12: 250235 | F12: 299913 | G12: 358464 | H12: 422736 | I12: 463615 | J12: 500548
A13: Baton Rouge | B13: Row House | C13: Baton Rouge Row House | D13: 167482 | E13: 219776 | F13: 267505 | G13: 328760 | H13: 391384 | I13: 432370 | J13: 469949
A14: Baton Rouge | B14: Walkup | C14: Baton Rouge Walkup | D14: 152046 | E14: 206801 | F14: 261412 | G14: 344058 | H14: 425863 | I14: 479464 | J14: 532316
A15: Baton Rouge | B15: Elevator | C15: Baton Rouge Elevator | D15: 155694 | E15: 217971 | F15: 280249 | G15: 373665 | H15: 467081 | I15: 529539 | J15: 591637
A16: Lafayette | B16: Detached / Semi-Detached | C16: Lafayette Detached / Semi-Detached | D16: 195259 | E16: 253241 | F16: 303557 | G16: 362882 | H16: 428000 | I16: 469411 | J16: 506866
A17: Lafayette | B17: Row House | C17: Lafayette Row House | D17: 169184 | E17: 222105 | F17: 270429 | G17: 332518 | H17: 395951 | I17: 437457 | J17: 475541
A18: Lafayette | B18: Walkup | C18: Lafayette Walkup | D18: 153284 | E18: 208399 | F18: 263367 | G18: 346565 | H18: 428903 | I18: 482839 | J18: 536009
A19: Lafayette | B19: Elevator | C19: Lafayette Elevator | D19: 157518 | E19: 220526 | F19: 285533 | G19: 378044 | H19: 472555 | I19: 535562 | J19: 598569
A20: Lake Charles | B20: Detached / Semi-Detached | C20: Lake Charles Detached / Semi-Detached | D20: 192990 | E20: 250235 | F20: 299913 | G20: 358464 | H20: 422736 | I20: 463615 | J20: 500548
A21: Lake Charles | B21: Row House | C21: Lake Charles Row House | D21: 167482 | E21: 219776 | F21: 267505 | G21: 328760 | H21: 391384 | I21: 432370 | J21: 469949
A22: Lake Charles | B22: Walkup | C22: Lake Charles Walkup | D22: 152046 | E22: 206801 | F22: 261412 | G22: 344058 | H22: 425863 | I22: 479464 | J22: 532316
A23: Lake Charles | B23: Elevator | C23: Lake Charles Elevator | D23: 155694 | E23: 217971 | F23: 280249 | G23: 373665 | H23: 467081 | I23: 429359 | J23: 591637
A24: Monroe | B24: Detached / Semi-Detached | C24: Monroe Detached / Semi-Detached | D24: 192305 | E24: 249637 | F24: 299388 | G24: 358124 | H24: 422583 | I24: 463555 | J24: 500757
A25: Monroe | B25: Row House | C25: Monroe Row House | D25: 165663 | E25: 217824 | F25: 265539 | G25: 327100 | H25: 389837 | I25: 430855 | J25: 468586
A26: Monroe | B26: Walkup | C26: Monroe Walkup | D26: 148985 | E26: 202245 | F26: 255355 | G26: 335784 | H26: 415332 | I26: 467388 | J26: 518664
A27: Monroe | B27: Elevator | C27: Monroe Elevator | D27: 155113 | E27: 217158 | F27: 279204 | G27: 372271 | H27: 465332 | I27: 527385 | J27: 589430
A28: New Orleans | B28: Detached / Semi-Detached | C28: New Orleans Detached / Semi-Detached | D28: 199618 | E28: 258890 | F28: 310326 | G28: 370970 | H28: 437537 | I28: 479869 | J28: 518155
A29: New Orleans | B29: Row House | C29: New Orleans Row House | D29: 172976 | E29: 227077 | F29: 276477 | G29: 339946 | H29: 404791 | I29: 447222 | J29: 468151
A30: New Orleans | B30: Walkup | C30: New Orleans Walkup | D30: 156737 | E30: 213098 | F30: 269309 | G30: 354388 | H30: 438588 | I30: 493745 | J30: 548119
A31: New Orleans | B31: Elevator | C31: New Orleans Elevator | D31: 161035 | E31: 225448 | F31: 289862 | G31: 386483 | H31: 483104 | I31: 547517 | J31: 611931
A32: Shreveport | B32: Detached / Semi-Detached | C32: Shreveport Detached / Semi-Detached | D32: 192036 | E32: 249094 | F32: 298610 | G32: 357003 | H32: 421096 | I32: 461852 | J32: 498736
A33: Shreveport | B33: Row House | C33: Shreveport Row House | D33: 166244 | E33: 218297 | F33: 265842 | G33: 326969 | H33: 389395 | I33: 430237 | J33: 467726
A34: Shreveport | B34: Walkup | C34: Shreveport Walkup | D34: 150450 | E34: 204499 | F34: 258403 | G34: 339996 | H34: 420738 | I34: 473621 | J34: 525746
A35: Shreveport | B35: Elevator | C35: Shreveport Elevator | D35: 154914 | E35: 216880 | F35: 278846 | G35: 371794 | H35: 464743 | I35: 526708 | J35: 588674
A37: Source:
A38: TDCs_2022.pdf (hud.gov)

Sheet HUD HCC
A5: HUD 2024 Unit HCC Limits Database
A7: Area | B7: Development Type | C7: Index | D7: 0 BR TDC | E7: 1 BR TDC | F7: 2 BR TDC | G7: 3 BR TDC | H7: 4 BR TDC | I7: 5 BR TDC | J7: 6 BR TDC
A8: Alexandria | B8: Detached / Semi-Detached | C8: =A8&" "&B8 -> Alexandria Detached / Semi-Detached | D8: =+'HUD data TDC'!D8/1.75 -> 108540.5714 | E8: =+'HUD data TDC'!E8/1.75 -> 140829.1429 | F8: =+'HUD data TDC'!F8/1.75 -> 168848.5714 | G8: =+'HUD data TDC'!G8/1.75 -> 201904 | H8: =+'HUD data TDC'!H8/1.75 -> 238184.5714 | I8: =+'HUD data TDC'!I8/1.75 -> 261251.4286 | J8: =+'HUD data TDC'!J8/1.75 -> 282151.4286
A9: Alexandria | B9: Row House | C9: Alexandria Row House | D9: =+'HUD data TDC'!D9/1.75 -> 93802.28571 | E9: =+'HUD data TDC'!E9/1.75 -> 123230.2857 | F9: =+'HUD data TDC'!F9/1.75 -> 150123.4286 | G9: =+'HUD data TDC'!G9/1.75 -> 184742.2857 | H9: =+'HUD data TDC'!H9/1.75 -> 220069.7143 | I9: =+'HUD data TDC'!I9/1.75 -> 243177.7143 | J9: =+'HUD data TDC'!J9/1.75 -> 264404
A10: Alexandria | B10: Walkup | C10: Alexandria Walkup | D10: =+'HUD data TDC'!D10/1.75 -> 84705.71429 | E10: =+'HUD data TDC'!E10/1.75 -> 115084.5714 | F10: =+'HUD data TDC'!F10/1.75 -> 145380.5714 | G10: =+'HUD data TDC'!G10/1.75 -> 191245.7143 | H10: =+'HUD data TDC'!H10/1.75 -> 236625.1429 | I10: =+'HUD data TDC'!I10/1.75 -> 266337.1429 | J10: =+'HUD data TDC'!J10/1.75 -> 295600
A11: Alexandria | B11: Elevator | C11: Alexandria Elevator | D11: =+'HUD data TDC'!D11/1.6 -> 95763.75 | E11: =+'HUD data TDC'!E11/1.6 -> 134069.375 | F11: =+'HUD data TDC'!F11/1.6 -> 172375 | G11: =+'HUD data TDC'!G11/1.6 -> 229833.75 | H11: =+'HUD data TDC'!H11/1.6 -> 287291.875 | I11: =+'HUD data TDC'!I11/1.6 -> 325597.5 | J11: =+'HUD data TDC'!J11/1.6 -> 363903.125
A12: Baton Rouge | B12: Detached / Semi-Detached | C12: Baton Rouge Detached / Semi-Detached | D12: =+'HUD data TDC'!D12/1.75 -> 110280 | E12: =+'HUD data TDC'!E12/1.75 -> 142991.4286 | F12: =+'HUD data TDC'!F12/1.75 -> 171378.8571 | G12: =+'HUD data TDC'!G12/1.75 -> 204836.5714 | H12: =+'HUD data TDC'!H12/1.75 -> 241563.4286 | I12: =+'HUD data TDC'!I12/1.75 -> 264922.8571 | J12: =+'HUD data TDC'!J12/1.75 -> 286027.4286
A13: Baton Rouge | B13: Row House | C13: Baton Rouge Row House | D13: =+'HUD data TDC'!D13/1.75 -> 95704 | E13: =+'HUD data TDC'!E13/1.75 -> 125586.2857 | F13: =+'HUD data TDC'!F13/1.75 -> 152860 | G13: =+'HUD data TDC'!G13/1.75 -> 187862.8571 | H13: =+'HUD data TDC'!H13/1.75 -> 223648 | I13: =+'HUD data TDC'!I13/1.75 -> 247068.5714 | J13: =+'HUD data TDC'!J13/1.75 -> 268542.2857
A14: Baton Rouge | B14: Walkup | C14: Baton Rouge Walkup | D14: =+'HUD data TDC'!D14/1.75 -> 86883.42857 | E14: =+'HUD data TDC'!E14/1.75 -> 118172 | F14: =+'HUD data TDC'!F14/1.75 -> 149378.2857 | G14: =+'HUD data TDC'!G14/1.75 -> 196604.5714 | H14: =+'HUD data TDC'!H14/1.75 -> 243350.2857 | I14: =+'HUD data TDC'!I14/1.75 -> 273979.4286 | J14: =+'HUD data TDC'!J14/1.75 -> 304180.5714
A15: Baton Rouge | B15: Elevator | C15: Baton Rouge Elevator | D15: =+'HUD data TDC'!D15/1.6 -> 97308.75 | E15: =+'HUD data TDC'!E15/1.6 -> 136231.875 | F15: =+'HUD data TDC'!F15/1.6 -> 175155.625 | G15: =+'HUD data TDC'!G15/1.6 -> 233540.625 | H15: =+'HUD data TDC'!H15/1.6 -> 291925.625 | I15: =+'HUD data TDC'!I15/1.6 -> 330961.875 | J15: =+'HUD data TDC'!J15/1.6 -> 369773.125
A16: Lafayette | B16: Detached / Semi-Detached | C16: Lafayette Detached / Semi-Detached | D16: =+'HUD data TDC'!D16/1.75 -> 111576.5714 | E16: =+'HUD data TDC'!E16/1.75 -> 144709.1429 | F16: =+'HUD data TDC'!F16/1.75 -> 173461.1429 | G16: =+'HUD data TDC'!G16/1.75 -> 207361.1429 | H16: =+'HUD data TDC'!H16/1.75 -> 244571.4286 | I16: =+'HUD data TDC'!I16/1.75 -> 268234.8571 | J16: =+'HUD data TDC'!J16/1.75 -> 289637.7143
A17: Lafayette | B17: Row House | C17: Lafayette Row House | D17: =+'HUD data TDC'!D17/1.75 -> 96676.57143 | E17: =+'HUD data TDC'!E17/1.75 -> 126917.1429 | F17: =+'HUD data TDC'!F17/1.75 -> 154530.8571 | G17: =+'HUD data TDC'!G17/1.75 -> 190010.2857 | H17: =+'HUD data TDC'!H17/1.75 -> 226257.7143 | I17: =+'HUD data TDC'!I17/1.75 -> 249975.4286 | J17: =+'HUD data TDC'!J17/1.75 -> 271737.7143
A18: Lafayette | B18: Walkup | C18: Lafayette Walkup | D18: =+'HUD data TDC'!D18/1.75 -> 87590.85714 | E18: =+'HUD data TDC'!E18/1.75 -> 119085.1429 | F18: =+'HUD data TDC'!F18/1.75 -> 150495.4286 | G18: =+'HUD data TDC'!G18/1.75 -> 198037.1429 | H18: =+'HUD data TDC'!H18/1.75 -> 245087.4286 | I18: =+'HUD data TDC'!I18/1.75 -> 275908 | J18: =+'HUD data TDC'!J18/1.75 -> 306290.8571
A19: Lafayette | B19: Elevator | C19: Lafayette Elevator | D19: =+'HUD data TDC'!D19/1.6 -> 98448.75 | E19: =+'HUD data TDC'!E19/1.6 -> 137828.75 | F19: =+'HUD data TDC'!F19/1.6 -> 178458.125 | G19: =+'HUD data TDC'!G19/1.6 -> 236277.5 | H19: =+'HUD data TDC'!H19/1.6 -> 295346.875 | I19: =+'HUD data TDC'!I19/1.6 -> 334726.25 | J19: =+'HUD data TDC'!J19/1.6 -> 374105.625
A20: Lake Charles | B20: Detached / Semi-Detached | C20: Lake Charles Detached / Semi-Detached | D20: =+'HUD data TDC'!D20/1.75 -> 110280 | E20: =+'HUD data TDC'!E20/1.75 -> 142991.4286 | F20: =+'HUD data TDC'!F20/1.75 -> 171378.8571 | G20: =+'HUD data TDC'!G20/1.75 -> 204836.5714 | H20: =+'HUD data TDC'!H20/1.75 -> 241563.4286 | I20: =+'HUD data TDC'!I20/1.75 -> 264922.8571 | J20: =+'HUD data TDC'!J20/1.75 -> 286027.4286
A21: Lake Charles | B21: Row House | C21: Lake Charles Row House | D21: =+'HUD data TDC'!D21/1.75 -> 95704 | E21: =+'HUD data TDC'!E21/1.75 -> 125586.2857 | F21: =+'HUD data TDC'!F21/1.75 -> 152860 | G21: =+'HUD data TDC'!G21/1.75 -> 187862.8571 | H21: =+'HUD data TDC'!H21/1.75 -> 223648 | I21: =+'HUD data TDC'!I21/1.75 -> 247068.5714 | J21: =+'HUD data TDC'!J21/1.75 -> 268542.2857
A22: Lake Charles | B22: Walkup | C22: Lake Charles Walkup | D22: =+'HUD data TDC'!D22/1.75 -> 86883.42857 | E22: =+'HUD data TDC'!E22/1.75 -> 118172 | F22: =+'HUD data TDC'!F22/1.75 -> 149378.2857 | G22: =+'HUD data TDC'!G22/1.75 -> 196604.5714 | H22: =+'HUD data TDC'!H22/1.75 -> 243350.2857 | I22: =+'HUD data TDC'!I22/1.75 -> 273979.4286 | J22: =+'HUD data TDC'!J22/1.75 -> 304180.5714
A23: Lake Charles | B23: Elevator | C23: Lake Charles Elevator | D23: =+'HUD data TDC'!D23/1.6 -> 97308.75 | E23: =+'HUD data TDC'!E23/1.6 -> 136231.875 | F23: =+'HUD data TDC'!F23/1.6 -> 175155.625 | G23: =+'HUD data TDC'!G23/1.6 -> 233540.625 | H23: =+'HUD data TDC'!H23/1.6 -> 291925.625 | I23: =+'HUD data TDC'!I23/1.6 -> 268349.375 | J23: =+'HUD data TDC'!J23/1.6 -> 369773.125
A24: Monroe | B24: Detached / Semi-Detached | C24: Monroe Detached / Semi-Detached | D24: =+'HUD data TDC'!D24/1.75 -> 109888.5714 | E24: =+'HUD data TDC'!E24/1.75 -> 142649.7143 | F24: =+'HUD data TDC'!F24/1.75 -> 171078.8571 | G24: =+'HUD data TDC'!G24/1.75 -> 204642.2857 | H24: =+'HUD data TDC'!H24/1.75 -> 241476 | I24: =+'HUD data TDC'!I24/1.75 -> 264888.5714 | J24: =+'HUD data TDC'!J24/1.75 -> 286146.8571
A25: Monroe | B25: Row House | C25: Monroe Row House | D25: =+'HUD data TDC'!D25/1.75 -> 94664.57143 | E25: =+'HUD data TDC'!E25/1.75 -> 124470.8571 | F25: =+'HUD data TDC'!F25/1.75 -> 151736.5714 | G25: =+'HUD data TDC'!G25/1.75 -> 186914.2857 | H25: =+'HUD data TDC'!H25/1.75 -> 222764 | I25: =+'HUD data TDC'!I25/1.75 -> 246202.8571 | J25: =+'HUD data TDC'!J25/1.75 -> 267763.4286
A26: Monroe | B26: Walkup | C26: Monroe Walkup | D26: =+'HUD data TDC'!D26/1.75 -> 85134.28571 | E26: =+'HUD data TDC'!E26/1.75 -> 115568.5714 | F26: =+'HUD data TDC'!F26/1.75 -> 145917.1429 | G26: =+'HUD data TDC'!G26/1.75 -> 191876.5714 | H26: =+'HUD data TDC'!H26/1.75 -> 237332.5714 | I26: =+'HUD data TDC'!I26/1.75 -> 267078.8571 | J26: =+'HUD data TDC'!J26/1.75 -> 296379.4286
A27: Monroe | B27: Elevator | C27: Monroe Elevator | D27: =+'HUD data TDC'!D27/1.6 -> 96945.625 | E27: =+'HUD data TDC'!E27/1.6 -> 135723.75 | F27: =+'HUD data TDC'!F27/1.6 -> 174502.5 | G27: =+'HUD data TDC'!G27/1.6 -> 232669.375 | H27: =+'HUD data TDC'!H27/1.6 -> 290832.5 | I27: =+'HUD data TDC'!I27/1.6 -> 329615.625 | J27: =+'HUD data TDC'!J27/1.6 -> 368393.75
A28: New Orleans | B28: Detached / Semi-Detached | C28: New Orleans Detached / Semi-Detached | D28: =+'HUD data TDC'!D28/1.75 -> 114067.4286 | E28: =+'HUD data TDC'!E28/1.75 -> 147937.1429 | F28: =+'HUD data TDC'!F28/1.75 -> 177329.1429 | G28: =+'HUD data TDC'!G28/1.75 -> 211982.8571 | H28: =+'HUD data TDC'!H28/1.75 -> 250021.1429 | I28: =+'HUD data TDC'!I28/1.75 -> 274210.8571 | J28: =+'HUD data TDC'!J28/1.75 -> 296088.5714
A29: New Orleans | B29: Row House | C29: New Orleans Row House | D29: =+'HUD data TDC'!D29/1.75 -> 98843.42857 | E29: =+'HUD data TDC'!E29/1.75 -> 129758.2857 | F29: =+'HUD data TDC'!F29/1.75 -> 157986.8571 | G29: =+'HUD data TDC'!G29/1.75 -> 194254.8571 | H29: =+'HUD data TDC'!H29/1.75 -> 231309.1429 | I29: =+'HUD data TDC'!I29/1.75 -> 255555.4286 | J29: =+'HUD data TDC'!J29/1.75 -> 267514.8571
A30: New Orleans | B30: Walkup | C30: New Orleans Walkup | D30: =+'HUD data TDC'!D30/1.75 -> 89564 | E30: =+'HUD data TDC'!E30/1.75 -> 121770.2857 | F30: =+'HUD data TDC'!F30/1.75 -> 153890.8571 | G30: =+'HUD data TDC'!G30/1.75 -> 202507.4286 | H30: =+'HUD data TDC'!H30/1.75 -> 250621.7143 | I30: =+'HUD data TDC'!I30/1.75 -> 282140 | J30: =+'HUD data TDC'!J30/1.75 -> 313210.8571
A31: New Orleans | B31: Elevator | C31: New Orleans Elevator | D31: =+'HUD data TDC'!D31/1.6 -> 100646.875 | E31: =+'HUD data TDC'!E31/1.6 -> 140905 | F31: =+'HUD data TDC'!F31/1.6 -> 181163.75 | G31: =+'HUD data TDC'!G31/1.6 -> 241551.875 | H31: =+'HUD data TDC'!H31/1.6 -> 301940 | I31: =+'HUD data TDC'!I31/1.6 -> 342198.125 | J31: =+'HUD data TDC'!J31/1.6 -> 382456.875
A32: Shreveport | B32: Detached / Semi-Detached | C32: Shreveport Detached / Semi-Detached | D32: =+'HUD data TDC'!D32/1.75 -> 109734.8571 | E32: =+'HUD data TDC'!E32/1.75 -> 142339.4286 | F32: =+'HUD data TDC'!F32/1.75 -> 170634.2857 | G32: =+'HUD data TDC'!G32/1.75 -> 204001.7143 | H32: =+'HUD data TDC'!H32/1.75 -> 240626.2857 | I32: =+'HUD data TDC'!I32/1.75 -> 263915.4286 | J32: =+'HUD data TDC'!J32/1.75 -> 284992
A33: Shreveport | B33: Row House | C33: Shreveport Row House | D33: =+'HUD data TDC'!D33/1.75 -> 94996.57143 | E33: =+'HUD data TDC'!E33/1.75 -> 124741.1429 | F33: =+'HUD data TDC'!F33/1.75 -> 151909.7143 | G33: =+'HUD data TDC'!G33/1.75 -> 186839.4286 | H33: =+'HUD data TDC'!H33/1.75 -> 222511.4286 | I33: =+'HUD data TDC'!I33/1.75 -> 245849.7143 | J33: =+'HUD data TDC'!J33/1.75 -> 267272
A34: Shreveport | B34: Walkup | C34: Shreveport Walkup | D34: =+'HUD data TDC'!D34/1.75 -> 85971.42857 | E34: =+'HUD data TDC'!E34/1.75 -> 116856.5714 | F34: =+'HUD data TDC'!F34/1.75 -> 147658.8571 | G34: =+'HUD data TDC'!G34/1.75 -> 194283.4286 | H34: =+'HUD data TDC'!H34/1.75 -> 240421.7143 | I34: =+'HUD data TDC'!I34/1.75 -> 270640.5714 | J34: =+'HUD data TDC'!J34/1.75 -> 300426.2857
A35: Shreveport | B35: Elevator | C35: Shreveport Elevator | D35: =+'HUD data TDC'!D35/1.6 -> 96821.25 | E35: =+'HUD data TDC'!E35/1.6 -> 135550 | F35: =+'HUD data TDC'!F35/1.6 -> 174278.75 | G35: =+'HUD data TDC'!G35/1.6 -> 232371.25 | H35: =+'HUD data TDC'!H35/1.6 -> 290464.375 | I35: =+'HUD data TDC'!I35/1.6 -> 329192.5 | J35: =+'HUD data TDC'!J35/1.6 -> 367921.25
A37: Source:
A38: TDCs_2022.pdf (hud.gov)
